bitfinex/quotes_ETHUSD_20260304
["timestamp","ask_amount","ask_price","bid_price","bid_amount"]
[1772614256166,6.46708975,2051.9,2050.9,2.11636187]
[1772614256167,6.46708975,2051.9,2051.2,2.63973259]
[1772614256391,6.46708975,2051.8,2051.3,2.63973259]
[1772614256542,6.46708975,2051.8,2051.6,0.001]
[1772614256947,7.68557466,2051.8,2051.6,0.001]
[1772614257251,3.54329125,2051.8,2051.7,2.66355394]
[1772614257650,1.21826421,2052.1,2051.7,2.66355394]
[1772614257850,1.21826421,2052.1,2051.4,2.11736187]
[1772614258075,1.21826421,2052.1,2051.5,2.66434081]
[1772614258377,1.22021697,2052.2,2051.8,2.11636187]
[1772614258554,7.68730672,2052.2,2051.6,2.11636187]
[1772614258951,6.46908975,2052.2,2051.7,1.21850173]
[1772614259154,7.68731396,2052.2,2051.6,3.33487935]
[1772614259363,1.22009196,2052.4,2052.1,2.11636187]
[1772614259570,1.22009196,2052.4,2051.6,1.21851748]
[1772614259571,7.68718171,2052.4,2051.8,3.32993955]
[1772614259775,1.66437068,2052.3,2051.9,0.42165308]
[1772614259955,1.66437068,2052.3,2052.0,0.42165308]
[1772614260284,1.87,2052.2,2051.7,5.49287009]
[1772614260579,8.33708975,2052.2,2051.2,1.21879434]
[1772614260877,8.33708975,2052.2,2051.3,8.0]
[1772614261074,1.21824985,2052.2,2051.2,8.0]
[1772614261389,0.002,2052.4,2051.8,6.86608762]
[1772614261553,1.87,2052.6,2052.1,5.58581553]
[1772614261749,1.2178952,2052.8,2052.1,5.58581553]
[1772614262048,2.88226588,2052.8,2052.2,13.58581553]
[1772614262250,1.66437068,2052.5,2051.9,8.0]
[1772614262483,1.2178952,2052.8,2051.9,8.0]
[1772614262957,2.57153488,2052.9,2052.1,7.44718865]
[1772614263375,2.57153488,2052.9,2052.2,14.22892444]
[1772614263895,3.78934651,2052.9,2052.2,14.22892444]
[1772614264116,2.57153488,2052.9,2052.2,14.22892444]
[1772614264394,3.78932861,2052.9,2052.2,14.22892444]
[1772614264780,3.78932861,2052.9,2052.2,8.0]
[1772614264968,3.78935047,2052.9,2052.3,1.21814549]
[1772614265174,3.7893332,2052.9,2052.3,1.21814549]
[1772614265362,3.78933294,2052.9,2052.3,1.21814549]
[1772614265567,3.15530568,2052.9,2052.3,1.21814549]
[1772614265764,1.93750762,2052.9,2052.4,8.0]
[1772614265992,1.53449468,2052.9,2052.5,6.22892444]
[1772614266197,0.003,2053.8,2052.8,6.22892444]
[1772614266398,1.66437068,2053.7,2052.7,6.22892444]
[1772614266774,1.66437068,2053.7,2052.8,8.0]
[1772614267098,1.21737436,2053.6,2052.8,8.0]
[1772614267293,1.21737436,2053.6,2052.8,9.21784474]
[1772614267486,1.21737436,2053.6,2052.8,15.44676918]
[1772614267798,1.21737436,2053.6,2052.8,14.22892444]
[1772614268000,6.73749746,2053.7,2052.8,14.22892444]
[1772614268001,4.86949746,2053.7,2052.8,14.22892444]
[1772614268167,1.21737436,2053.6,2052.8,14.22892444]
[1772614268470,1.18679801,2053.4,2052.8,8.0]
[1772614268997,1.21749293,2053.4,2052.8,8.0]
[1772614269198,1.18679801,2052.9,2051.9,8.08446038]
[1772614269402,1.18679801,2052.3,2051.3,6.22892444]
[1772614269562,3.05279801,2052.3,2051.2,1.681]
[1772614269762,1.18679801,2052.1,2050.9,9.12890082]
[1772614269967,1.18679801,2052.1,2050.9,9.12889737]
[1772614270385,1.18679801,2052.1,2050.6,4.87660124]
[1772614270386,1.18679801,2051.9,2050.6,1.21915536]
[1772614270588,0.21502099,2052.9,2050.8,6.22892444]
[1772614270788,5.06741734,2053.8,2050.8,6.22892444]
[1772614270789,7.65388776,2052.2,2050.9,2.79681238]
[1772614271104,1.865,2052.3,2052.0,0.001]
[1772614271301,6.46708975,2052.2,2050.6,7.4480798]
[1772614271501,6.46708975,2052.0,2050.7,2.79643136]
[1772614271706,1.18679801,2051.7,2050.8,2.79643136]
[1772614271873,6.46708975,2051.5,2050.9,2.79643136]
[1772614272074,1.865,2051.7,2051.0,0.43697261]
[1772614272371,6.46708975,2051.9,2050.7,1.18679801]
[1772614272570,6.46708975,2051.8,2050.6,6.22892444]
[1772614272806,7.65388776,2051.8,2050.5,1.21920435]
[1772614273107,1.21850173,2051.7,2050.7,7.41572245]
[1772614273474,1.21850173,2051.7,2050.7,6.22892444]
[1772614274098,1.21850173,2051.7,2050.5,5.59155324]
[1772614274099,2.40529974,2051.7,2050.5,5.59155324]
[1772614274307,1.18679801,2051.5,2050.4,7.27155324]
[1772614274495,1.18679801,2050.9,2050.2,0.001]
[1772614274901,3.05079801,2051.1,2050.2,0.001]
[1772614275102,1.18679801,2050.7,2050.2,0.001]
[1772614275330,1.18679801,2050.4,2049.8,0.001]
[1772614275617,0.69908121,2050.2,2049.3,1.21989316]
[1772614275819,0.69908121,2050.2,2049.2,0.1]
[1772614276177,1.863,2050.2,2049.2,0.1]
[1772614276990,1.863,2050.9,2049.5,1.18679801]
[1772614277313,1.21901868,2050.9,2049.6,1.28679801]
[1772614277518,10.73583522,2051.0,2049.6,7.41572245]
[1772614277810,1.18679801,2050.6,2049.7,0.1]
[1772614278011,1.18679801,2050.5,2049.5,0.1]
[1772614278382,6.00075969,2050.6,2049.5,0.1]
[1772614278795,1.18679801,2050.4,2049.5,0.1]
[1772614279120,1.21921482,2050.5,2049.6,1.21975019]
[1772614279701,1.18679801,2050.4,2049.5,1.31977625]
[1772614279897,1.18679801,2050.4,2049.5,0.1]
[1772614280104,9.59357053,2050.5,2049.5,0.1]
[1772614280105,8.40677252,2050.5,2049.5,0.1]
[1772614280416,6.00075969,2050.4,2049.5,0.1]
[1772614280647,1.18679801,2050.1,2049.0,1.22106677]
[1772614280916,7.1875577,2050.2,2049.1,0.1]
[1772614281104,1.2194527,2050.1,2049.2,1.21998828]
[1772614281307,1.18679801,2049.8,2049.1,0.1]
[1772614281493,1.18679801,2049.8,2049.0,0.001]
[1772614281694,5.91770304,2050.0,2048.8,0.001]
[1772614281896,5.91770304,2050.0,2048.8,2.40802407]
[1772614282199,7.10450105,2050.0,2048.8,2.40802407]
[1772614282383,7.10450105,2050.0,2048.8,1.22122606]
[1772614283216,1.21957168,2049.9,2048.8,0.001]
[1772614283408,11.98278779,2050.0,2048.8,0.001]
[1772614283604,1.18679801,2049.8,2048.8,0.001]
[1772614283803,1.17795186,2049.8,2048.8,0.001]
[1772614284113,1.21957168,2049.9,2049.0,0.001]
[1772614285535,0.002,2050.3,2049.6,6.10105831]
[1772614285692,1.2213358,2050.3,2049.6,6.10105831]
[1772614286104,2.40813381,2050.3,2049.2,7.77905831]
[1772614286625,2.40813381,2050.3,2049.2,6.10105831]
[1772614287128,2.40813381,2050.3,2049.3,1.21992875]
[1772614287339,1.2213358,2050.3,2049.3,1.21992875]
[1772614287523,1.2213358,2050.3,2049.3,1.62728338]
[1772614287724,1.2213358,2050.3,2049.3,7.32098706]
[1772614288212,1.18679801,2049.9,2049.0,1.62843115]
[1772614288398,1.18679801,2049.7,2049.0,0.40835463]
[1772614288604,1.18679801,2049.5,2049.0,0.001]
[1772614288819,1.18679801,2049.7,2049.0,0.001]
[1772614289328,1.21975019,2049.6,2049.0,0.001]
[1772614290241,0.002,2050.3,2049.1,6.10105831]
[1772614290405,1.21939322,2050.2,2049.2,6.10105831]
[1772614291319,1.21939322,2050.2,2049.3,1.21992875]
[1772614291928,7.91937092,2050.3,2049.4,6.10105831]
[1772614291929,1.22136102,2050.3,2049.4,6.10105831]
[1772614292231,1.22136102,2050.3,2049.1,4.88012616]
[1772614292232,1.18679801,2050.2,2049.1,4.88012616]
[1772614292530,1.18679801,2050.2,2049.0,7.32214194]
[1772614292828,1.18679801,2050.0,2049.0,7.32214194]
[1772614293432,1.2194527,2050.1,2049.0,7.32214194]
[1772614293604,1.18679801,2050.0,2049.0,6.10205831]
[1772614293804,1.18679801,2050.0,2049.0,7.32215859]
[1772614294041,1.2194527,2050.1,2049.0,7.32215859]
[1772614294412,1.21941314,2050.2,2049.2,6.10105831]
[1772614295152,2.40621115,2050.2,2049.2,6.10105831]
[1772614295449,1.21957168,2049.9,2049.0,2.88910212]
[1772614295748,1.18679801,2049.8,2049.0,0.001]
[1772614296232,3.06657168,2049.9,2049.0,0.001]
[1772614296754,3.06657168,2049.9,2049.0,1.22109794]
[1772614297075,1.21957168,2049.9,2049.0,1.22109794]
[1772614297539,1.21957168,2049.9,2049.2,0.001]
[1772614297949,1.18679801,2049.8,2049.2,0.001]
[1772614298639,1.21957168,2049.9,2049.2,0.001]
[1772614299053,1.18679801,2049.8,2049.2,0.001]
[1772614299251,1.18679801,2049.6,2049.2,0.001]
[1772614299431,1.2198097,2049.5,2049.0,0.001]
[1772614302660,1.18679801,2049.4,2048.8,0.001]
[1772614303233,1.838,2049.3,2048.1,7.3226988]
[1772614303433,1.838,2049.3,2048.1,6.10205831]
[1772614303434,1.18679801,2048.9,2048.1,6.10205831]
[1772614303662,2.40702448,2048.8,2048.1,7.32269974]
[1772614303865,2.40702448,2048.8,2048.1,6.10205831]
[1772614304068,0.79886615,2048.4,2048.1,0.001]
[1772614304249,0.70200263,2048.2,2048.1,0.001]
[1772614304757,1.88880064,2048.2,2047.4,2.87706016]
[1772614305271,0.70200263,2048.2,2047.4,7.32211847]
[1772614305677,1.22064352,2048.1,2047.4,7.32211847]
[1772614305837,1.22064352,2048.1,2047.4,7.32210661]
[1772614306031,6.77123063,2048.2,2047.4,7.32211913]
[1772614306271,0.70200263,2048.2,2047.6,6.10105831]
[1772614306469,1.92259545,2048.2,2047.6,6.10105831]
[1772614307185,1.92263518,2048.2,2047.6,6.10105831]
[1772614307461,1.92258772,2048.2,2047.4,7.32209999]
[1772614307853,0.70200263,2048.2,2047.4,7.32209999]
[1772614308168,1.92259133,2048.2,2047.4,7.32209999]
[1772614308404,1.22016691,2048.9,2047.7,6.14761702]
[1772614308555,1.22016691,2048.9,2047.9,6.14761702]
[1772614308745,1.21986923,2049.4,2048.3,6.14761702]
[1772614308951,1.18679801,2049.3,2048.3,6.14761702]
[1772614309577,1.21998828,2049.2,2048.3,6.14761702]
[1772614309761,1.18679801,2049.1,2048.3,7.36813571]
[1772614309963,1.18679801,2049.1,2048.3,6.14761702]
[1772614310154,1.21998828,2049.2,2048.1,3.90047939]
[1772614310155,1.18679801,2048.9,2048.1,3.90047939]
[1772614310499,3.01779801,2049.0,2047.9,6.14761702]
[1772614310652,1.18679801,2048.7,2047.7,9.01847331]
[1772614310846,1.18679801,2048.7,2047.6,1.22090677]
[1772614311080,1.18679801,2048.1,2047.3,3.56839507]
[1772614311273,2.37359602,2048.5,2047.3,3.56839507]
[1772614311274,1.18679801,2047.9,2047.3,3.56839507]
[1772614311468,1.18679801,2047.9,2046.9,6.14761702]
[1772614311469,1.18679801,2047.5,2046.9,6.14761702]
[1772614311653,1.22106085,2047.4,2046.5,7.36916891]
[1772614311977,1.18679801,2047.1,2046.1,6.14761702]
[1772614312178,1.22106085,2047.4,2045.7,7.86142569]
[1772614312179,1.18679801,2046.7,2045.7,7.86142569]
[1772614312352,1.18679801,2046.7,2045.7,9.0834644]
[1772614312551,1.18679801,2046.5,2045.7,9.08349744]
[1772614312763,1.18679801,2046.7,2045.6,1.22210137]
[1772614313455,1.18679801,2046.7,2045.4,10.04971386]
[1772614313657,1.18679801,2046.5,2045.4,8.82749626]
[1772614313866,1.18679801,2046.5,2045.4,10.04972638]
[1772614314370,1.18679801,2046.5,2045.4,6.14761702]
[1772614314683,1.18679801,2046.5,2045.4,7.36987014]
[1772614315082,1.18679801,2046.5,2045.4,6.14761702]
[1772614315083,1.18679801,2046.3,2045.4,6.14761702]
[1772614315254,1.18679801,2046.3,2044.8,4.89039467]
[1772614315255,1.18679801,2045.9,2044.8,6.14761702]
[1772614315457,1.18679801,2045.4,2044.4,6.14761702]
[1772614315772,1.22231457,2045.3,2044.0,10.97635571]
[1772614316074,0.001,2044.7,2044.2,6.14761702]
[1772614316477,0.001,2044.7,2043.1,6.14761702]
[1772614316783,0.001,2044.7,2043.2,6.14761702]
[1772614316987,0.001,2044.7,2043.4,6.14761702]
[1772614317184,0.001,2044.7,2043.6,7.33441503]
[1772614317480,8.08927241,2045.3,2043.8,7.33441503]
[1772614317679,1.18679801,2045.1,2043.9,1.22315181]
[1772614318054,1.18679801,2045.1,2043.8,7.37080593]
[1772614318260,1.18679801,2044.9,2043.8,7.37080593]
[1772614318460,1.22237433,2045.2,2044.1,1.18679801]
[1772614318852,1.22219506,2045.5,2044.1,7.33441503]
[1772614319485,2.69392975,2046.0,2044.3,6.14761702]
[1772614319486,1.2219561,2045.9,2044.3,6.14761702]
[1772614319687,1.2219561,2045.9,2044.8,1.22261345]
[1772614320386,1.2219561,2045.9,2045.0,0.7]
[1772614320885,2.36949878,2045.9,2045.0,0.7]
[1772614321085,2.36949878,2045.9,2045.0,6.84761702]
[1772614321086,1.2219561,2045.9,2045.0,6.84761702]
[1772614321385,1.54224897,2046.0,2045.0,6.14761702]
[1772614321587,1.54224709,2046.0,2045.0,6.14761702]
[1772614321788,0.32033373,2046.0,2045.0,7.37008088]
[1772614322094,0.32033373,2046.0,2045.1,7.79561702]
[1772614322265,1.54224167,2046.0,2045.1,7.79561702]
[1772614322768,1.54224167,2046.0,2045.1,6.14761702]
[1772614322986,0.32033373,2046.0,2045.1,6.14761702]
[1772614323192,1.54225205,2046.0,2045.1,6.14761702]
[1772614323558,1.54225205,2046.0,2044.7,1.14754268]
[1772614323559,2.68979473,2046.0,2044.6,9.01829729]
[1772614323988,0.32033373,2046.0,2044.9,7.2951597]
[1772614324197,1.22169255,2046.4,2045.2,7.2951597]
[1772614324368,1.22169255,2046.4,2045.3,7.79661702]
[1772614324570,1.22169255,2046.4,2045.3,0.001]
[1772614325093,6.26227241,2046.3,2045.3,0.001]
[1772614325289,2.97354268,2046.2,2045.3,0.001]
[1772614325792,1.14754268,2045.9,2045.3,0.001]
[1772614326365,1.14754268,2045.6,2045.0,0.001]
[1772614326866,1.14754268,2045.6,2044.8,0.001]
[1772614326867,1.14754268,2045.3,2044.8,0.001]
[1772614327804,0.001,2044.8,2043.9,6.14761702]
[1772614328162,1.14754268,2044.7,2043.3,7.371128]
[1772614328369,1.14754268,2044.7,2043.4,6.14761702]
[1772614328583,0.001,2044.8,2043.4,6.14761702]
[1772614328792,1.6087839,2044.6,2043.4,6.14761702]
[1772614328999,7.87105631,2044.6,2042.8,7.79461702]
[1772614329183,7.87105631,2044.6,2042.9,6.14761702]
[1772614329394,0.001,2044.8,2042.9,6.14761702]
[1772614329693,6.26227241,2044.6,2042.9,6.14761702]
[1772614329874,6.26227241,2044.6,2042.9,7.37136355]
[1772614329875,3.4327839,2044.5,2042.9,7.37136355]
[1772614330398,6.26227241,2044.6,2042.9,7.37136355]
[1772614330714,2.83139735,2044.8,2043.0,6.14761702]
[1772614330996,2.83139735,2044.8,2043.1,6.14761702]
[1772614331200,1.6087839,2044.3,2043.1,6.14761702]
[1772614331513,6.26227241,2044.7,2043.1,6.14761702]
[1772614331805,1.22285267,2044.4,2043.2,7.37118788]
[1772614332003,1.22285267,2044.4,2043.2,6.14761702]
[1772614332870,1.22249388,2045.0,2043.2,6.14761702]
[1772614333369,1.6087839,2044.8,2043.2,6.14761702]
[1772614333571,1.6087839,2044.8,2043.4,6.14761702]
[1772614333770,1.22267325,2044.7,2043.5,7.37100826]
[1772614334383,1.22249388,2045.0,2043.6,6.14761702]
[1772614335382,1.22225481,2045.4,2043.6,6.14761702]
[1772614335578,1.22225481,2045.4,2043.8,6.14761702]
[1772614335789,4.88901926,2045.6,2044.2,6.14761702]
[1772614336101,1.22213531,2045.6,2044.4,6.14761702]
[1772614336999,5.2099194,2045.7,2044.4,6.14761702]
[1772614337000,0.32137815,2045.7,2044.4,6.14761702]
[1772614337185,0.002,2045.8,2044.7,6.14761702]
[1772614337388,0.002,2045.8,2045.7,0.001]
[1772614338172,0.002,2046.0,2045.7,0.001]
[1772614338578,1.6107839,2046.0,2044.6,6.01764994]
[1772614338780,1.6087839,2045.7,2044.2,8.88062225]
[1772614339186,1.6087839,2045.4,2044.2,1.64]
[1772614339390,1.6087839,2045.1,2043.8,6.01864994]
[1772614339624,6.04586402,2045.5,2043.8,7.24185766]
[1772614339625,3.4237839,2045.4,2043.8,7.24185766]
[1772614339907,3.03731457,2045.3,2043.8,7.24185766]
[1772614340205,1.6087839,2045.1,2043.8,6.01864994]
[1772614340396,7.65464792,2045.1,2043.8,0.001]
[1772614340593,1.22231457,2045.3,2043.8,7.24185584]
[1772614341175,1.22231457,2045.3,2043.8,6.01864994]
[1772614341176,1.6087839,2045.1,2043.8,6.01864994]
[1772614341677,1.6087839,2044.8,2043.8,0.001]
[1772614341876,1.22267325,2044.7,2043.8,0.001]
[1772614342110,1.6087839,2044.2,2043.5,0.001]
[1772614342735,1.812,2044.4,2043.5,0.001]
[1772614343036,1.6087839,2044.1,2043.5,0.001]
[1772614343338,6.42710062,2044.5,2043.5,0.001]
[1772614343511,1.811,2044.6,2043.5,0.001]
[1772614343714,1.6087839,2044.4,2043.5,0.001]
[1772614343908,1.6087839,2044.1,2043.5,0.001]
[1772614344344,1.22291248,2044.3,2043.5,0.001]
[1772614345406,1.6087839,2044.2,2043.5,0.001]
[1772614345622,1.22291248,2044.3,2043.5,0.001]
[1772614345836,11.31827347,2044.5,2043.5,0.001]
[1772614346051,4.89164995,2044.6,2043.5,0.001]
[1772614346267,4.89164995,2044.6,2043.5,6.39222541]
[1772614347961,1.22267325,2044.8,2043.7,6.39122541]
[1772614348569,9.25855777,2044.8,2043.5,0.001]
[1772614348737,1.6087839,2044.5,2043.5,0.001]
[1772614349053,6.88037873,2044.7,2043.5,0.001]
[1772614349054,3.41548983,2044.4,2043.5,0.001]
[1772614349423,1.806,2044.4,2043.5,6.39222541]
[1772614349622,2.83216308,2044.8,2043.5,6.39222541]
[1772614349623,1.22267325,2044.8,2043.5,6.39222541]
[1772614349922,1.0,2044.6,2043.5,6.39222541]
[1772614350127,1.60948983,2044.5,2043.5,0.001]
[1772614350323,1.0,2044.6,2043.5,6.39222541]
[1772614350528,1.0,2044.6,2043.7,0.001]
[1772614351258,1.0,2044.6,2043.7,6.39222541]
[1772614351861,1.22279285,2044.5,2043.9,0.7]
[1772614352651,2.22276959,2044.6,2043.9,0.7]
[1772614352854,2.22276959,2044.6,2043.9,1.92313858]
[1772614353253,1.0,2044.6,2043.9,8.31436399]
[1772614353458,1.2222279,2045.5,2044.2,6.39122541]
[1772614353760,1.2222279,2045.5,2044.3,6.39122541]
[1772614354052,4.88878024,2045.7,2044.4,1.22285267]
[1772614354242,3.35601114,2045.6,2044.3,7.61409279]
[1772614354558,1.60948983,2045.3,2043.9,8.31437108]
[1772614354756,1.60948983,2045.3,2043.9,1.92314567]
[1772614354961,6.69110129,2045.8,2044.2,6.39122541]
[1772614355256,3.35763416,2045.7,2044.2,5.89172541]
[1772614355560,11.39457295,2045.6,2044.2,5.89172541]
[1772614355748,6.88078795,2045.5,2044.2,5.89172541]
[1772614355949,6.42710062,2045.5,2044.2,5.89172541]
[1772614356349,1.22225481,2045.4,2044.3,1.22291248]
[1772614356726,1.22225481,2045.4,2044.3,7.61413789]
[1772614357198,1.22207557,2045.7,2044.3,7.61413789]
[1772614358255,1.22207557,2045.7,2044.5,6.39122541]
[1772614358458,0.002,2045.8,2044.7,6.39122541]
[1772614359164,0.002,2045.8,2044.8,6.39122541]
[1772614359465,0.002,2046.0,2044.6,1.22273305]
[1772614359466,0.002,2046.0,2044.7,6.39122541]
[1772614360432,0.002,2046.0,2045.1,6.39122541]
[1772614360849,0.002,2046.3,2045.1,6.39122541]
[1772614362463,0.002,2046.3,2045.3,6.39122541]
[1772614362666,1.2212398,2047.1,2045.5,6.39122541]
[1772614363166,1.2212398,2047.1,2045.2,1.22237433]
[1772614363167,1.2212398,2047.1,2045.6,8.01222541]
[1772614363381,6.42710062,2046.9,2045.5,6.39122541]
[1772614363538,8.03659045,2046.9,2045.5,6.39122541]
[1772614363874,0.002,2046.1,2045.5,6.39122541]
[1772614364380,1.2212398,2047.1,2045.5,6.39122541]
[1772614364544,1.22094159,2047.6,2045.7,6.39122541]
[1772614364744,3.34909272,2047.4,2045.7,6.39122541]
[1772614364970,0.002,2046.6,2045.7,6.39122541]
[1772614365773,1.22064352,2048.2,2046.2,6.39122541]
[1772614366076,1.22037529,2048.6,2047.0,6.39122541]
[1772614366236,1.22037529,2048.6,2046.8,0.065536]
[1772614366237,1.22037529,2048.6,2047.2,6.39122541]
[1772614366673,4.88134979,2048.7,2047.3,7.61234591]
[1772614367647,6.42710062,2048.6,2047.2,8.01022541]
[1772614367851,4.8833824,2048.8,2047.3,6.39122541]
[1772614368841,4.8833824,2048.8,2047.5,5.9226735]
[1772614369372,4.8833824,2048.8,2047.6,1.618]
[1772614369870,4.8833824,2048.8,2047.7,5.9226735]
[1772614370182,0.002,2048.8,2047.7,5.9226735]
[1772614370377,1.22212783,2049.0,2047.7,5.9226735]
[1772614370542,1.22212783,2049.0,2047.9,5.9226735]
[1772614370741,1.22212783,2049.0,2048.0,7.5406735]
[1772614371051,0.002,2049.0,2048.1,7.14331702]
[1772614371574,0.002,2049.0,2048.3,5.9226735]
[1772614371747,1.21985199,2049.5,2048.5,5.9226735]
[1772614372081,0.002,2050.0,2048.5,5.9226735]
[1772614372082,4.87852473,2049.9,2048.5,5.9226735]
[1772614372242,4.87852473,2049.9,2048.7,5.9226735]
[1772614372438,1.21957168,2049.9,2048.7,5.9226735]
[1772614372639,1.21957168,2049.9,2048.3,2.74490889]
[1772614372640,1.60948983,2049.7,2048.3,8.66758239]
[1772614372869,6.1653935,2049.6,2048.2,1.617]
[1772614373166,1.2198097,2049.5,2048.2,7.5396735]
[1772614373368,1.2198097,2049.5,2048.2,5.9226735]
[1772614373673,6.1653935,2049.2,2047.7,7.1435381]
[1772614373838,6.1653935,2049.2,2047.7,8.75954393]
[1772614374183,1.2198097,2049.5,2047.3,9.88866878]
[1772614374184,6.1653935,2048.9,2047.3,9.88866878]
[1772614374353,6.1653935,2048.9,2047.3,8.66758239]
[1772614374670,6.1653935,2048.3,2046.9,5.9226735]
[1772614375039,1.22058392,2048.2,2047.0,7.14397296]
[1772614375266,1.22056175,2048.3,2047.0,7.14397296]
[1772614375465,1.22056175,2048.3,2047.1,7.5376735]
[1772614376165,1.22056175,2048.3,2047.1,5.9226735]
[1772614376372,11.04584309,2049.0,2047.3,5.9226735]
[1772614376568,6.1653935,2048.9,2047.3,5.9226735]
[1772614377152,7.38561997,2048.8,2047.4,1.615]
[1772614377379,7.38561997,2048.8,2047.5,1.615]
[1772614377950,0.002,2048.6,2047.5,1.615]
[1772614378150,0.002,2048.6,2047.3,7.5376735]
[1772614378151,6.1673935,2048.6,2047.3,7.5376735]
[1772614378347,6.1673935,2048.6,2046.9,5.9226735]
[1772614378953,6.1673935,2048.6,2047.0,6.6226735]
[1772614379186,1.22040517,2048.5,2047.2,5.9226735]
[1772614381169,7.77488333,2048.5,2047.2,5.9226735]
[1772614381382,6.1653935,2048.5,2047.2,5.9226735]
[1772614381557,7.77488333,2048.5,2047.2,5.9226735]
[1772614381875,6.1653935,2048.4,2047.1,1.613]
[1772614382181,6.1653935,2048.2,2047.1,2.83422793]
[1772614382389,6.1653935,2048.2,2047.1,1.613]
[1772614382678,6.1653935,2048.2,2047.1,2.83423727]
[1772614382881,1.61148983,2048.6,2047.0,0.7]
[1772614382882,6.1653935,2047.6,2047.0,0.7]
[1772614383080,0.44982041,2048.1,2046.8,0.001]
[1772614383081,7.38621584,2047.8,2046.8,0.001]
[1772614385365,1.22082234,2047.8,2047.0,0.7]
[1772614385577,7.38621584,2047.8,2047.0,0.7]
[1772614385988,1.22064352,2048.1,2047.0,6.6226735]
[1772614386489,7.38603702,2048.1,2047.0,0.7]
[1772614386664,6.61693975,2048.0,2047.0,0.7]
[1772614386865,6.1653935,2047.8,2047.0,3.6e-07]
[1772614387065,6.61693205,2047.7,2046.8,0.001]
[1772614387275,6.1653935,2047.7,2046.8,0.001]
[1772614387478,7.83833704,2047.6,2046.8,0.001]
[1772614387786,6.1653935,2047.4,2046.8,0.001]
[1772614388295,1.22094159,2047.6,2046.8,0.001]
[1772614388498,0.45232926,2047.5,2046.8,0.001]
[1772614388801,1.22094159,2047.6,2046.8,0.001]
[1772614389586,4.88376636,2047.7,2046.8,0.001]
[1772614390490,4.88284156,2048.0,2046.8,0.001]
[1772614390785,0.45283591,2047.9,2046.8,0.001]
[1772614390957,0.45283591,2047.8,2047.0,0.001]
[1772614391162,4.88284156,2048.0,2047.0,0.001]
[1772614391358,6.1653935,2047.8,2047.0,0.001]
[1772614391577,1.22100122,2047.5,2047.0,0.001]
[1772614391779,1.22100122,2047.5,2046.8,0.001]
[1772614393485,7.38639472,2047.5,2046.8,0.001]
[1772614393788,0.45344737,2047.4,2046.8,0.001]
[1772614394091,7.38639472,2047.5,2046.8,0.001]
[1772614394260,0.45344737,2047.4,2046.8,0.001]
[1772614394593,1.22100122,2047.5,2046.8,0.001]
[1772614394965,0.45357527,2047.4,2046.8,0.001]
[1772614395158,1.14521797,2047.4,2046.8,0.001]
[1772614396496,1.2211205,2047.3,2046.8,0.001]
[1772614396697,7.386514,2047.3,2046.5,0.001]
[1772614396910,6.61895688,2047.2,2046.5,0.001]
[1772614397063,1.2211205,2047.3,2046.5,0.001]
[1772614397260,2.23256338,2047.2,2046.5,0.001]
[1772614397568,3.0001205,2047.3,2046.5,0.001]
[1772614397763,6.1653935,2047.1,2045.7,5.9226735]
[1772614397971,6.1653935,2047.1,2044.9,0.14948499]
[1772614397972,6.5,2046.9,2045.3,4.09173961]
[1772614398172,14.05721238,2045.5,2045.4,1.22225481]
[1772614398371,17.02313428,2045.5,2045.4,1.22225481]
[1772614398785,14.05721238,2045.5,2045.3,1.603]
[1772614398996,1.68871693,2046.1,2045.5,3.07216816]
[1772614399162,4.88523689,2047.0,2045.5,3.07216816]
[1772614399361,46.43875382,2047.0,2045.5,3.07216816]
[1772614399772,4.88449301,2047.3,2045.6,6.46546617]
[1772614400171,14.2049437,2047.7,2045.8,6.46546617]
[1772614400481,4.88398735,2047.6,2045.8,6.46546617]
[1772614400668,10.95210594,2047.6,2046.0,6.46546617]
[1772614400871,10.95210594,2047.6,2046.1,8.06746617]
[1772614401170,1.14521797,2047.3,2046.1,6.46546617]
[1772614401369,6.66398735,2047.6,2046.1,8.06746617]
[1772614401678,10.98962631,2047.6,2046.1,8.06746617]
[1772614402067,7.25085693,2047.5,2046.1,8.06746617]
[1772614402571,1.14521797,2047.2,2045.9,7.29986486]
[1772614402788,6.10563896,2047.5,2045.9,7.29986486]
[1772614402789,1.22106085,2047.4,2045.9,7.29986486]
[1772614403492,1.22106085,2047.4,2046.3,6.07890876]
[1772614403899,1.22106085,2047.4,2046.4,7.67890876]
[1772614404122,4.88424343,2047.5,2046.5,6.07790876]
[1772614404123,1.22104868,2047.5,2046.5,6.07790876]
[1772614404319,1.22104868,2047.5,2046.3,0.001]
[1772614404498,1.22104868,2047.5,2046.3,6.07890876]
[1772614405004,4.88400488,2047.7,2046.4,7.2995663]
[1772614406175,7.25085693,2047.6,2046.4,1.22165754]
[1772614406382,8.57260952,2047.9,2046.4,1.22165754]
[1772614406383,7.25085693,2048.4,2046.4,7.2995663]
[1772614406907,6.10563896,2048.0,2046.6,6.07790876]
[1772614407218,1.22076273,2047.9,2046.7,1.22147847]
[1772614407401,7.32640169,2047.9,2046.7,1.22147847]
[1772614407720,4.88305093,2048.0,2046.7,7.29938723]
[1772614407721,1.22074454,2048.0,2046.7,7.29938723]
[1772614407902,4.88257409,2048.2,2046.7,7.29938723]
[1772614409306,12.13343102,2048.2,2046.7,7.29938723]
[1772614409789,6.10563896,2048.1,2046.7,7.29938723]
[1772614410386,7.25085693,2048.1,2046.7,7.29938723]
[1772614411107,1.22070312,2048.0,2046.7,7.29938723]
[1772614412898,1.19251427,2047.9,2046.7,7.29938723]
[1772614413098,1.22070312,2048.0,2046.7,7.29938723]
[1772614413099,4.88295169,2048.0,2046.7,7.29938723]
[1772614413278,4.8831103,2048.8,2046.7,7.29938723]
[1772614413279,0.002,2048.6,2046.7,7.29938723]
[1772614413494,6.10563896,2048.0,2046.7,7.29938723]
[1772614413697,7.29815323,2047.9,2046.8,1.598]
[1772614413903,6.10563896,2047.9,2046.8,1.598]
[1772614414119,7.29815323,2047.9,2046.8,1.598]
[1772614414597,7.29815323,2048.3,2046.9,6.07790876]
[1772614414791,7.29815323,2048.1,2046.9,6.07790876]
[1772614414992,6.10563896,2048.1,2046.9,6.07790876]
[1772614415296,7.29815323,2047.9,2046.9,1.22135912]
[1772614415496,1.19251427,2047.7,2046.9,1.22135912]
[1772614415821,6.10763896,2047.9,2046.9,1.22135912]
[1772614417405,7.32842745,2047.9,2046.9,1.22135912]
[1772614418006,6.10763896,2047.9,2046.9,1.22135912]
[1772614418203,7.32841474,2047.9,2046.9,1.22135912]
[1772614418697,7.29815323,2047.7,2046.9,1.22135912]